bitfinex/quotes_SOLUSD_20241024
["timestamp","ask_amount","ask_price","bid_price","bid_amount"]
[1729741384673,16.1009,174.55,174.48,20.0]
[1729741384972,15.9009,174.55,174.54,18.38315866]
[1729741385152,0.1,174.56,174.54,18.38315866]
[1729741385361,0.2,174.56,174.54,18.38315866]
[1729741385562,0.1,174.55,174.53,18.38315866]
[1729741385964,0.2,174.55,174.53,18.38315866]
[1729741386955,0.1,174.54,174.53,18.38315866]
[1729741387272,0.1,174.54,174.52,18.38315866]
[1729741388151,0.2,174.55,174.52,18.38315866]
[1729741388373,0.2,174.55,174.52,28.6716544]
[1729741388576,0.1,174.55,174.53,28.6716544]
[1729741388766,0.2,174.56,174.53,28.6716544]
[1729741389059,23.776884,174.57,174.55,28.6716544]
[1729741389256,0.2,174.58,174.56,28.6716544]
[1729741389456,0.1,174.58,174.56,28.6716544]
[1729741389670,16.0009,174.59,174.56,28.6716544]
[1729741389671,0.1,174.57,174.56,28.6716544]
[1729741390077,0.1,174.58,174.56,28.6716544]
[1729741390385,0.2,174.58,174.56,28.6716544]
[1729741390557,0.1,174.58,174.56,28.6716544]
[1729741390978,0.1,174.61,174.57,28.6716544]
[1729741391277,0.1,174.61,174.6,28.6716544]
[1729741392161,0.1,174.62,174.6,28.6716544]
[1729741392669,0.1,174.63,174.61,28.6716544]
[1729741393055,0.1,174.62,174.6,28.6716544]
[1729741395596,23.776884,174.63,174.61,28.6716544]
[1729741395878,23.876884,174.63,174.61,28.6716544]
[1729741396778,0.1,174.62,174.6,28.6716544]
[1729741397990,16.2997,174.64,174.6,28.6716544]
[1729741398592,16.2997,174.64,174.61,28.6716544]
[1729741398792,0.1,174.63,174.52,20.25098]
[1729741398986,23.876884,174.65,174.62,28.6716544]
[1729741399195,0.1,174.67,174.64,28.6716544]
[1729741399407,0.1,174.67,174.65,28.6716544]
[1729741399709,0.1,174.67,174.6,28.6716544]
[1729741399710,0.1,174.67,174.66,28.6716544]
[1729741400094,0.1,174.68,174.66,28.6716544]
[1729741400408,0.1,174.7,174.67,28.6716544]
[1729741400626,0.1,174.7,174.69,28.6716544]
[1729741402802,0.1,174.7,174.61,6.38331617]
[1729741402803,0.1,174.7,174.68,28.6716544]
[1729741405501,0.1,174.7,174.61,6.38331617]
[1729741405811,0.1,174.7,174.68,28.6716544]
[1729741407515,0.1,174.7,174.62,21.6]
[1729741407815,0.1,174.7,174.67,28.6716544]
[1729741408419,47.5485384,174.71,174.67,28.6716544]
[1729741408714,28.7716544,174.71,174.67,28.6716544]
[1729741408916,0.1,174.71,174.68,28.6716544]
[1729741409918,0.1,174.71,174.67,28.6716544]
[1729741410111,28.7716544,174.71,174.66,28.6716544]
[1729741410727,28.7716544,174.72,174.67,28.6716544]
[1729741411018,28.6716544,174.71,174.67,28.6716544]
[1729741412319,18.31997536,174.71,174.67,18.31997536]
[1729741413723,18.41997536,174.72,174.67,18.31997536]
[1729741413914,18.31997536,174.71,174.67,18.31997536]
[1729741419004,18.31997536,174.71,174.66,18.31997536]
[1729741419326,18.31997536,174.71,174.67,20.0]
[1729741420909,18.31997536,174.68,174.62,21.6]
[1729741421127,18.31997536,174.68,174.64,20.0]
[1729741421308,18.31997536,174.68,174.63,18.31997536]
[1729741423428,18.31997536,174.65,174.61,6.38331617]
[1729741423722,18.31997536,174.63,174.58,18.31997536]
[1729741424504,0.1,174.66,174.61,18.31997536]
[1729741424729,18.31997536,174.66,174.61,18.31997536]
[1729741425536,18.31997536,174.65,174.61,18.31997536]
[1729741425825,18.31997536,174.64,174.58,7.12424395]
[1729741426131,18.31997536,174.63,174.58,18.31997536]
[1729741427106,18.41997536,174.63,174.58,18.31997536]
[1729741428327,18.31997536,174.63,174.58,18.31997536]
[1729741429618,18.31997536,174.63,174.55,17.57287503]
[1729741429924,18.41997536,174.63,174.58,18.31997536]
[1729741432036,18.31997536,174.63,174.58,18.31997536]
[1729741432331,18.41997536,174.63,174.58,18.31997536]
[1729741434333,18.31997536,174.62,174.57,18.31997536]
[1729741434524,18.41997536,174.62,174.57,18.31997536]
[1729741435520,18.41997536,174.62,174.58,18.31997536]
[1729741438316,18.41997536,174.63,174.58,18.31997536]
[1729741438919,0.1,174.62,174.58,18.31997536]
[1729741439437,42.32234936,174.62,174.54,20.0]
[1729741439737,18.31997536,174.58,174.53,19.62961512]
[1729741439908,18.41997536,174.58,174.53,1.30963976]
[1729741441532,18.31997536,174.57,174.53,1.30963976]
[1729741441911,18.41997536,174.58,174.53,1.30963976]
[1729741442111,18.41997536,174.58,174.53,19.62961512]
[1729741442318,18.31997536,174.59,174.54,18.31997536]
[1729741442514,18.41997536,174.6,174.55,18.31997536]
[1729741445143,0.1,174.6,174.56,18.31997536]
[1729741445439,23.876884,174.6,174.56,18.31997536]
[1729741445657,42.19685936,174.6,174.55,18.31997536]
[1729741450740,18.31997536,174.58,174.54,18.31997536]
[1729741452135,18.31997536,174.57,174.53,1.30963976]
[1729741452444,18.41997536,174.56,174.51,18.31997536]
[1729741453937,0.1,174.56,174.51,18.31997536]
[1729741454531,42.19685936,174.56,174.49,7.12424395]
[1729741454748,42.19685936,174.56,174.51,18.31997536]
[1729741455441,42.09685936,174.56,174.51,18.31997536]
[1729741455650,23.776884,174.56,174.51,18.31997536]
[1729741456028,23.876884,174.56,174.51,18.31997536]
[1729741456227,23.776884,174.56,174.51,18.31997536]
[1729741456435,18.41997536,174.57,174.51,18.31997536]
[1729741456632,0.1,174.59,174.56,9.15998768]
[1729741456837,0.1,174.6,174.57,18.31997536]
[1729741458139,33.94507536,174.62,174.57,18.31997536]
[1729741458140,0.1,174.61,174.57,18.31997536]
[1729741458445,15.6251,174.62,174.59,18.31997536]
[1729741458757,15.7251,174.62,174.59,18.31997536]
[1729741459760,15.7251,174.62,174.58,18.31997536]
[1729741461059,0.1,174.61,174.58,18.31997536]
[1729741461369,0.1,174.61,174.57,18.31997536]
[1729741461953,34.04507536,174.62,174.58,18.31997536]
[1729741464662,33.94507536,174.62,174.58,18.31997536]
[1729741464842,34.04507536,174.62,174.58,18.31997536]
[1729741465271,0.1,174.61,174.58,18.31997536]
[1729741465462,34.04507536,174.62,174.58,18.31997536]
[1729741465641,0.1,174.61,174.58,18.31997536]
[1729741468169,33.94507536,174.62,174.58,18.31997536]
[1729741468355,0.1,174.61,174.57,18.31997536]
[1729741468699,34.04507536,174.62,174.57,18.31997536]
[1729741468866,15.7251,174.62,174.58,18.31997536]
[1729741469173,15.6251,174.62,174.59,18.31997536]
[1729741469461,15.7251,174.62,174.58,18.31997536]
[1729741469661,15.6251,174.62,174.58,18.31997536]
[1729741471079,15.7251,174.62,174.58,18.31997536]
[1729741471259,15.6251,174.62,174.58,18.31997536]
[1729741471448,0.1,174.63,174.58,18.31997536]
[1729741471645,23.776884,174.62,174.58,18.31997536]
[1729741472164,0.1,174.65,174.61,18.31997536]
[1729741472343,0.1,174.65,174.62,18.31997536]
[1729741472548,15.0337,174.66,174.63,18.31997536]
[1729741472865,15.0337,174.66,174.54,30.0]
[1729741472866,6.1571,174.68,174.65,18.31997536]
[1729741473167,15.0337,174.7,174.67,18.31997536]
[1729741473338,15.0337,174.7,174.65,18.31997536]
[1729741473339,33.45367536,174.7,174.65,18.31997536]
[1729741473538,33.45367536,174.7,174.58,20.12549]
[1729741473539,0.1,174.65,174.58,20.12549]
[1729741473892,18.41997536,174.65,174.6,18.31997536]
[1729741474357,0.1,174.64,174.6,18.31997536]
[1729741475266,0.1,174.64,174.58,20.0]
[1729741475267,18.41997536,174.64,174.59,18.31997536]
[1729741476165,0.1,174.64,174.6,18.31997536]
[1729741476468,18.41997536,174.65,174.6,18.31997536]
[1729741479266,18.41997536,174.64,174.55,11.617]
[1729741479475,0.1,174.62,174.58,18.31997536]
[1729741479653,18.41997536,174.62,174.58,18.31997536]
[1729741480873,18.31997536,174.62,174.58,18.31997536]
[1729741481062,18.41997536,174.62,174.58,18.31997536]
[1729741482205,0.1,174.62,174.58,18.31997536]
[1729741484974,0.1,174.62,174.55,11.617]
[1729741484975,0.1,174.62,174.59,18.31997536]
[1729741489066,0.1,174.59,174.55,18.31997536]
[1729741492180,0.1,174.59,174.51,5.95627026]
[1729741492386,18.41997536,174.59,174.51,5.95627026]
[1729741492565,0.1,174.58,174.54,18.31997536]
[1729741492765,0.1,174.58,174.55,18.31997536]
[1729741494083,0.1,174.59,174.55,18.31997536]
[1729741494285,0.1,174.58,174.55,18.31997536]
[1729741496487,0.1,174.58,174.51,5.95627026]
[1729741496659,0.1,174.58,174.55,18.31997536]
[1729741499684,0.1,174.6,174.56,18.31997536]
[1729741499887,0.1,174.6,174.57,18.31997536]
[1729741500675,0.1,174.6,174.56,18.31997536]
[1729741501292,0.1,174.61,174.57,18.31997536]
[1729741501679,0.1,174.61,174.58,18.31997536]
[1729741502266,0.1,174.6,174.58,18.31997536]
[1729741502585,0.1,174.61,174.58,18.31997536]
[1729741502889,0.1,174.6,174.57,18.31997536]
[1729741503089,0.1,174.61,174.57,18.31997536]
[1729741504172,0.1,174.6,174.57,18.31997536]
[1729741504382,0.1,174.61,174.57,18.31997536]
[1729741504678,0.1,174.6,174.57,18.31997536]
[1729741505369,0.1,174.62,174.58,18.31997536]
[1729741505563,0.1,174.63,174.6,9.15998768]
[1729741505768,0.1,174.64,174.61,18.31997536]
[1729741507078,0.1,174.64,174.56,7.12477763]
[1729741507299,0.1,174.62,174.53,20.12549]
[1729741507478,18.41997536,174.59,174.54,18.31997536]
[1729741507795,18.41997536,174.56,174.46,15.01998318]
[1729741507972,18.41997536,174.56,174.5,18.31997536]
[1729741508165,0.1,174.54,174.5,18.31997536]
[1729741508588,18.41997536,174.55,174.5,18.31997536]
[1729741510291,0.1,174.55,174.51,18.31997536]
[1729741510478,0.1,174.54,174.47,0.12549]
[1729741510682,0.1,174.54,174.5,18.31997536]
[1729741511089,0.1,174.55,174.47,0.12549]
[1729741511270,0.1,174.55,174.51,18.31997536]
[1729741511792,0.1,174.58,174.54,18.31997536]
[1729741512093,0.1,174.58,174.56,18.31997536]
[1729741512668,0.1,174.6,174.57,18.31997536]
[1729741512889,0.1,174.6,174.59,18.31997536]
[1729741513216,16.0177,174.61,174.59,18.31997536]
[1729741513996,16.1177,174.61,174.58,18.31997536]
[1729741514396,0.1,174.6,174.58,18.31997536]
[1729741514695,18.31997536,174.59,174.49,7.12477763]
[1729741514890,18.41997536,174.57,174.53,18.31997536]
[1729741515087,0.1,174.56,174.49,7.12477763]
[1729741515391,0.1,174.56,174.54,18.31997536]
[1729741515769,0.1,174.56,174.53,18.31997536]
[1729741518202,0.1,174.59,174.55,18.31997536]
[1729741518407,0.1,174.59,174.56,18.31997536]
[1729741520404,0.1,174.58,174.56,18.31997536]
[1729741520594,0.1,174.59,174.56,18.31997536]
[1729741523688,16.1177,174.61,174.57,18.31997536]
[1729741523894,16.0177,174.61,174.59,18.31997536]
[1729741524087,0.1,174.62,174.59,18.31997536]
[1729741525888,0.1,174.62,174.6,18.31997536]
[1729741526108,6.468,174.63,174.61,18.31997536]
[1729741527688,0.1,174.62,174.61,18.31997536]
[1729741527997,0.1,174.62,174.6,18.31997536]
[1729741529009,6.468,174.63,174.6,18.31997536]
[1729741529192,0.1,174.62,174.6,18.31997536]
[1729741529716,6.468,174.63,174.6,18.31997536]
[1729741530211,0.1,174.62,174.6,18.31997536]
[1729741532211,6.468,174.63,174.6,18.31997536]
[1729741532409,16.3421,174.65,174.54,0.1]
[1729741532595,0.1,174.64,174.62,18.31997536]
[1729741534709,0.1,174.64,174.55,0.25098]
[1729741535010,0.1,174.64,174.6,18.31997536]
[1729741535229,0.1,174.61,174.55,30.0]
[1729741535394,0.1,174.6,174.55,30.0]
[1729741535598,0.1,174.6,174.57,18.31997536]
[1729741535811,18.41997536,174.61,174.56,18.31997536]
[1729741535995,0.1,174.6,174.56,18.31997536]
[1729741536617,0.1,174.61,174.58,18.31997536]
[1729741536821,0.1,174.61,174.59,18.31997536]
[1729741540408,0.1,174.63,174.6,18.31997536]
[1729741540614,0.1,174.64,174.6,18.31997536]
[1729741541716,16.3421,174.65,174.61,18.31997536]
[1729741542017,0.1,174.64,174.6,18.31997536]
[1729741543314,0.1,174.63,174.6,18.31997536]
[1729741544222,34.66207536,174.65,174.6,18.31997536]
[1729741544400,0.1,174.63,174.55,0.25098]
[1729741544599,0.1,174.63,174.59,18.31997536]
[1729741545118,18.31997536,174.64,174.59,18.31997536]
[1729741545418,0.1,174.63,174.59,18.31997536]
[1729741545609,0.1,174.63,174.6,18.31997536]
[1729741547820,34.66207536,174.65,174.6,18.31997536]
[1729741548019,0.1,174.62,174.6,18.31997536]
[1729741548401,0.1,174.62,174.61,18.31997536]
[1729741549624,0.1,174.63,174.61,18.31997536]
[1729741549919,0.1,174.63,174.62,18.31997536]
[1729741550158,0.1,174.64,174.61,18.31997536]
[1729741550321,0.1,174.63,174.61,18.31997536]
[1729741550905,0.1,174.62,174.61,18.31997536]
[1729741552412,0.1,174.64,174.61,18.31997536]
[1729741552596,16.3421,174.65,174.62,18.31997536]
[1729741553730,0.1,174.64,174.62,18.31997536]
[1729741554704,0.1,174.63,174.61,18.31997536]
[1729741554902,0.1,174.62,174.61,18.31997536]
[1729741555728,0.1,174.64,174.61,18.31997536]
[1729741555907,0.1,174.62,174.61,18.31997536]
[1729741556107,0.1,174.63,174.61,18.31997536]
[1729741556306,0.1,174.62,174.61,18.31997536]
[1729741556525,0.1,174.64,174.61,18.31997536]
[1729741559635,0.1,174.62,174.61,18.31997536]
[1729741560327,16.3421,174.65,174.61,18.31997536]
[1729741560518,0.1,174.64,174.62,18.31997536]
[1729741562437,0.1,174.62,174.6,18.31997536]
[1729741562633,0.1,174.62,174.55,0.35098]
[1729741562932,0.1,174.62,174.55,31.6604697]
[1729741563234,0.1,174.62,174.59,18.31997536]
[1729741563530,0.1,174.62,174.55,38.78524733]
[1729741563730,0.1,174.62,174.59,18.31997536]
[1729741563927,0.1,174.62,174.6,18.31997536]
[1729741564132,0.1,174.62,174.55,38.78524733]
[1729741564314,0.1,174.62,174.59,18.31997536]
[1729741564517,0.1,174.62,174.55,38.78524733]
[1729741564725,18.41997536,174.64,174.6,18.31997536]
[1729741564917,0.1,174.63,174.6,18.31997536]
[1729741565225,16.2421,174.65,174.6,18.31997536]
[1729741565226,0.1,174.62,174.6,18.31997536]
[1729741565631,0.1,174.63,174.61,18.31997536]
[1729741566119,0.1,174.62,174.61,18.31997536]
[1729741567230,0.1,174.62,174.6,18.31997536]
[1729741568912,0.1,174.62,174.55,38.78524733]
[1729741569112,0.1,174.62,174.6,18.31997536]
[1729741570955,0.1,174.62,174.57,0.12549]
[1729741571241,0.1,174.62,174.6,18.31997536]
[1729741573330,0.1,174.61,174.59,18.31997536]
[1729741573540,18.41997536,174.6,174.55,1.3094897]
[1729741573713,18.41997536,174.6,174.55,19.62946506]
[1729741573909,0.1,174.59,174.55,19.62946506]
[1729741574735,0.1,174.59,174.55,1.3094897]
[1729741575235,0.1,174.59,174.56,18.31997536]
[1729741577340,0.1,174.6,174.56,18.31997536]
[1729741579525,0.1,174.61,174.58,18.31997536]
[1729741579837,0.1,174.61,174.59,18.31997536]
[1729741580015,0.1,174.61,174.55,1.3094897]
[1729741580220,0.1,174.6,174.56,18.31997536]
[1729741580640,0.1,174.6,174.57,18.31997536]
[1729741580830,0.1,174.6,174.58,18.31997536]
[1729741584932,0.1,174.6,174.55,1.3094897]
[1729741585128,0.1,174.6,174.58,18.31997536]
[1729741585944,0.1,174.6,174.59,18.31997536]
[1729741586846,0.1,174.61,174.59,18.31997536]
[1729741587226,0.1,174.61,174.6,18.31997536]
[1729741587842,0.1,174.61,174.59,18.31997536]
[1729741589048,0.1,174.62,174.59,18.31997536]
[1729741589239,0.1,174.61,174.59,18.31997536]
[1729741589824,0.1,174.61,174.55,1.3094897]
[1729741590026,0.1,174.61,174.59,18.31997536]
[1729741590719,16.3421,174.65,174.6,18.31997536]
[1729741590951,6.3315,174.67,174.64,18.31997536]
[1729741591141,0.1,174.65,174.6,73.27990144]
[1729741591339,0.1,174.64,174.57,0.1]
[1729741591645,0.1,174.64,174.57,21.66031968]
[1729741591975,0.1,174.66,174.63,9.15998768]
[1729741592153,0.1,174.67,174.65,9.15998768]
[1729741592555,0.1,174.67,174.65,18.31997536]
[1729741593736,0.1,174.68,174.65,18.31997536]
[1729741593941,16.2959,174.69,174.67,18.31997536]
[1729741594260,0.1,174.69,174.68,18.31997536]
[1729741601043,0.1,174.73,174.68,18.31997536]
[1729741601245,0.1,174.73,174.72,18.31997536]
[1729741601770,16.2959,174.74,174.72,18.31997536]
[1729741604862,0.1,174.73,174.72,18.31997536]
[1729741605245,0.1,174.72,174.65,20.35098]
[1729741605447,0.1,174.72,174.7,18.31997536]
[1729741607597,16.2959,174.74,174.71,18.31997536]
[1729741607864,0.1,174.73,174.71,18.31997536]
[1729741608060,0.1,174.72,174.7,18.31997536]
[1729741609067,0.1,174.72,174.71,18.31997536]
[1729741610365,0.1,174.73,174.71,18.31997536]
[1729741610556,0.1,174.72,174.71,18.31997536]
[1729741615648,16.1959,174.74,174.71,18.31997536]
[1729741615849,16.1959,174.74,174.72,18.31997536]
[1729741616153,0.1,174.75,174.73,18.31997536]
[1729741618372,0.1,174.76,174.74,18.31997536]
[1729741619677,0.1,174.77,174.75,18.31997536]
[1729741624152,0.1,174.78,174.75,18.31997536]
[1729741625262,0.1,174.77,174.75,18.31997536]
[1729741625863,0.1,174.77,174.76,18.31997536]
[1729741627470,0.1,174.76,174.69,20.35098]
[1729741627658,0.1,174.76,174.73,18.31997536]
[1729741627864,18.41997536,174.75,174.68,7.22477763]
[1729741628064,18.41997536,174.75,174.72,18.31997536]
[1729741628283,0.1,174.74,174.72,18.31997536]
[1729741629271,0.1,174.75,174.73,18.31997536]
[1729741629979,0.1,174.74,174.73,18.31997536]
[1729741631257,0.1,174.74,174.72,18.31997536]
[1729741635284,0.1,174.75,174.73,18.31997536]
[1729741635470,0.1,174.76,174.74,18.31997536]
[1729741635780,0.1,174.75,174.74,18.31997536]
[1729741637881,0.1,174.75,174.69,0.35098]
[1729741638074,0.1,174.75,174.73,18.31997536]
[1729741638463,0.1,174.75,174.74,18.31997536]
[1729741639785,0.1,174.76,174.74,18.31997536]
[1729741641001,23.2969328,174.79,174.75,18.31997536]
[1729741641283,0.5657328,174.79,174.78,18.31997536]
[1729741642973,0.5657328,174.79,174.75,0.1]
[1729741643276,0.5657328,174.79,174.78,18.31997536]
[1729741644987,0.5657328,174.79,174.78,18.44546536]
[1729741647383,18.98570816,174.79,174.71,6.14614323]
[1729741647572,18.41997536,174.76,174.71,1.30829047]
[1729741647772,0.1,174.75,174.72,18.31997536]
[1729741648071,18.41997536,174.76,174.72,18.31997536]
[1729741648269,0.1,174.75,174.72,18.31997536]
[1729741648688,0.1,174.76,174.74,18.31997536]
[1729741648868,0.1,174.77,174.74,18.31997536]
[1729741649284,0.1,174.77,174.75,18.31997536]
[1729741649769,0.5657328,174.79,174.76,18.31997536]
[1729741649972,0.5657328,174.79,174.71,1.40829047]
[1729741649973,0.5657328,174.79,174.78,18.31997536]
[1729741651685,0.6657328,174.79,174.73,20.1]
[1729741651894,0.6657328,174.79,174.76,18.31997536]
[1729741652071,0.1,174.77,174.74,19.62804122]
[1729741652276,0.1,174.76,174.74,1.30806586]
[1729741653194,18.41997536,174.75,174.74,1.30806586]
[1729741654875,0.1,174.75,174.74,1.30806586]
[1729741655082,0.1,174.73,174.69,18.31997536]
[1729741655903,0.1,174.73,174.7,18.31997536]
[1729741656194,0.1,174.75,174.72,18.31997536]
[1729741657484,18.41997536,174.73,174.66,20.25098]
[1729741657681,0.1,174.71,174.67,18.31997536]
[1729741658003,0.1,174.71,174.68,18.31997536]
[1729741658602,0.1,174.7,174.65,5.96770789]
[1729741658905,0.1,174.7,174.67,18.31997536]
[1729741659106,0.1,174.7,174.68,18.31997536]
[1729741660703,0.1,174.7,174.65,5.96770789]
[1729741660936,0.1,174.7,174.68,18.31997536]
[1729741661201,0.1,174.72,174.68,18.31997536]
[1729741661405,0.1,174.72,174.7,18.31997536]
[1729741661705,0.1,174.74,174.71,18.31997536]
[1729741661906,0.1,174.73,174.72,18.31997536]
[1729741663187,0.1,174.73,174.71,18.31997536]
[1729741664002,0.1,174.74,174.71,18.31997536]
[1729741664306,0.1,174.73,174.71,18.31997536]
[1729741666388,0.1,174.74,174.71,18.31997536]
[1729741666590,0.1,174.73,174.71,18.31997536]
[1729741668508,0.1,174.74,174.72,18.31997536]
[1729741668706,0.1,174.73,174.72,18.31997536]
[1729741674107,0.1,174.74,174.72,18.31997536]
[1729741674613,0.1,174.73,174.72,18.31997536]
[1729741678701,0.1,174.73,174.66,0.35098]
[1729741678901,0.1,174.72,174.66,30.35098]
[1729741679100,0.1,174.72,174.71,18.31997536]
[1729741679410,0.1,174.73,174.71,18.31997536]
[1729741679602,0.1,174.72,174.71,18.31997536]
[1729741680420,0.1,174.73,174.71,18.31997536]
[1729741680713,0.1,174.74,174.71,18.31997536]
[1729741680909,0.1,174.73,174.71,18.31997536]
[1729741681314,0.1,174.73,174.72,18.31997536]
[1729741683231,0.1,174.74,174.72,18.31997536]
[1729741683431,0.1,174.74,174.73,18.31997536]
[1729741685407,0.1,174.7,174.66,1.43415499]
[1729741685611,0.1,174.7,174.68,18.31997536]
[1729741686032,0.1,174.7,174.69,18.31997536]
[1729741687033,0.1,174.64,174.62,5.92647721]
[1729741687227,0.1,174.64,174.63,18.31997536]
[1729741687615,0.1,174.65,174.63,18.31997536]
[1729741687825,0.1,174.65,174.64,18.31997536]
[1729741689409,0.1,174.68,174.64,18.31997536]
[1729741689609,0.1,174.68,174.67,18.31997536]
[1729741690031,0.1,174.66,174.6,73.27990144]
[1729741690223,0.1,174.66,174.64,18.31997536]
[1729741690435,0.1,174.65,174.6,73.27990144]
[1729741690624,0.1,174.66,174.6,73.27990144]
[1729741691028,0.1,174.64,174.6,73.27990144]
[1729741691832,0.1,174.58,174.56,5.92984085]
[1729741692034,0.1,174.58,174.57,18.31997536]
[1729741695817,0.1,174.57,174.51,20.25098]
[1729741696144,0.1,174.57,174.56,18.31997536]
[1729741698149,0.1,174.58,174.56,18.31997536]
[1729741698335,0.1,174.59,174.57,18.31997536]
[1729741698862,0.1,174.59,174.58,18.31997536]
[1729741699146,0.1,174.6,174.58,18.31997536]
[1729741699335,0.1,174.61,174.59,18.31997536]
[1729741699572,0.1,174.61,174.6,18.31997536]
[1729741702743,0.1,174.61,174.53,20.25098]
[1729741703050,0.1,174.61,174.6,18.31997536]
[1729741706955,0.1,174.63,174.6,18.31997536]
[1729741707151,0.1,174.66,174.62,18.31997536]
[1729741707456,0.1,174.64,174.6,73.27990144]
[1729741709757,0.1,174.64,174.63,18.31997536]
[1729741715257,0.1,174.65,174.63,18.31997536]
[1729741715469,0.1,174.65,174.64,18.31997536]
[1729741717564,6.3993,174.67,174.64,18.31997536]
[1729741717749,0.1,174.67,174.66,18.31997536]
[1729741723269,0.1,174.64,174.6,73.27990144]
[1729741723474,0.1,174.64,174.63,18.31997536]
[1729741724877,0.1,174.65,174.63,18.31997536]
[1729741725069,16.3041,174.69,174.64,18.31997536]
[1729741725070,0.1,174.66,174.64,18.31997536]
[1729741725272,0.1,174.66,174.65,18.31997536]
[1729741728978,0.1,174.64,174.6,73.27990144]
[1729741729272,0.1,174.64,174.63,18.31997536]
[1729741732262,0.1,174.66,174.63,18.31997536]
[1729741732572,0.1,174.66,174.65,18.31997536]
[1729741735467,0.1,174.67,174.65,18.31997536]
[1729741735788,0.1,174.67,174.66,18.31997536]
[1729741737079,0.1,174.67,174.66,9.15998768]
[1729741737379,0.1,174.69,174.66,18.31997536]
[1729741737686,0.1,174.7,174.68,18.31997536]
[1729741737994,0.1,174.71,174.69,18.31997536]
[1729741738283,0.1,174.71,174.7,18.31997536]
[1729741738485,0.1,174.72,174.7,18.31997536]
[1729741739260,0.1,174.71,174.7,18.31997536]
[1729741739465,0.1,174.72,174.7,18.31997536]
[1729741739762,0.1,174.74,174.71,18.31997536]
[1729741739966,0.1,174.74,174.73,18.31997536]
[1729741742585,0.1,174.74,174.65,0.1]
[1729741742766,0.1,174.74,174.73,18.31997536]
[1729741745687,0.1,174.74,174.67,0.25098]
[1729741745867,0.1,174.74,174.73,18.31997536]
[1729741749272,0.1,174.77,174.73,18.31997536]
[1729741749472,6.8159328,174.79,174.76,18.31997536]
[1729741749473,0.5657328,174.79,174.76,18.31997536]
[1729741749675,0.5657328,174.79,174.78,18.31997536]
[1729741750189,0.5657328,174.79,174.73,1.30814072]
[1729741750370,0.1,174.77,174.76,18.31997536]
[1729741750781,9.25998768,174.78,174.73,1.30814072]
[1729741750993,0.1,174.74,174.73,1.30814072]
[1729741754381,0.1,174.74,174.73,19.62811608]
[1729741762106,0.1,174.74,174.73,1.30814072]
[1729741762289,0.1,174.74,174.73,19.62811608]
[1729741767681,0.1,174.74,174.73,1.30814072]
[1729741767993,0.1,174.74,174.73,19.62811608]
[1729741769609,0.1,174.74,174.73,1.30814072]
[1729741770187,0.1,174.72,174.71,18.31997536]
[1729741776316,0.1,174.73,174.71,18.31997536]
[1729741776512,0.1,174.73,174.72,18.31997536]
[1729741792721,0.1,174.74,174.72,18.31997536]
[1729741792922,0.1,174.75,174.73,18.31997536]
[1729741793130,0.1,174.75,174.74,18.31997536]
[1729741793625,0.1,174.74,174.73,18.31997536]
[1729741795730,0.1,174.69,174.67,5.89799909]
[1729741795906,0.1,174.7,174.68,18.31997536]
[1729741796112,0.1,174.7,174.69,9.15998768]
[1729741797414,0.1,174.7,174.69,18.31997536]
[1729741800030,0.1,174.72,174.69,18.31997536]
[1729741800204,0.1,174.7,174.67,5.89799909]
[1729741800410,0.1,174.69,174.67,5.89799909]
[1729741800628,0.1,174.68,174.67,5.89799909]
[1729741801535,0.1,174.68,174.67,24.21797445]
[1729741804952,0.1,174.69,174.67,24.21797445]
[1729741805135,0.1,174.71,174.68,18.31997536]
[1729741805439,0.1,174.71,174.7,18.31997536]
[1729741806213,0.1,174.72,174.7,91.5998768]
[1729741806525,0.1,174.72,174.71,18.31997536]
[1729741807112,0.1,174.73,174.71,18.31997536]